[Event "*** Titled Tuesday Blitz"]
[Site "Chess.com"]
[Date "2021.03.09"]
[Round "6"]
[White "anasta10"]
[Black "The_filthy"]
[Result "1-0"]
[WhiteElo "2472"]
[BlackElo "2320"]
[TimeControl "180+1"]
[EndTime "11:10:02 PST"]
[Termination "anasta10 won by resignation"]

1. d4 {[%clk 0:03:00.9]} 1... d5 {[%clk 0:02:59.3]} 2. c4 {[%clk 0:02:57.5]}
2... c6 {[%clk 0:02:59.6]} 3. cxd5 {[%clk 0:02:57.5]} 3... cxd5 {[%clk
0:02:59.1]} 4. Nc3 {[%clk 0:02:57.7]} 4... Nc6 {[%clk 0:02:54.9]} 5. Bf4 {[%clk
0:02:57.6]} 5... e5 {[%clk 0:02:48.6]} 6. dxe5 {[%clk 0:02:56.3]} 6... d4 {[%clk
0:02:46.4]} 7. Ne4 {[%clk 0:02:55.8]} 7... Qd5 {[%clk 0:02:33]} 8. Nd2 {[%clk
0:02:52.5]} 8... Bf5 {[%clk 0:02:12]} 9. Ngf3 {[%clk 0:02:50.6]} 9... Nb4 {[%clk
0:01:49.8]} 10. Rc1 {[%clk 0:02:22.5]} 10... Nxa2 {[%clk 0:01:34.3]} 11. Rc4
{[%clk 0:02:09.3]} 11... Nb4 {[%clk 0:01:23.3]} 12. Rxb4 {[%clk 0:01:59.6]}
12... Bxb4 {[%clk 0:01:20.8]} 13. Qa4+ {[%clk 0:01:59.7]} 13... b5 {[%clk
0:01:16]} 14. Qxb4 {[%clk 0:01:59.7]} 14... Ne7 {[%clk 0:01:15.8]} 15. Nxd4
{[%clk 0:01:53.8]} 15... Rc8 {[%clk 0:01:14.2]} 16. f3 {[%clk 0:01:30.6]} 16...
Bd7 {[%clk 0:01:08.6]} 17. e3 {[%clk 0:01:27.6]} 17... Ng6 {[%clk 0:01:05.1]}
18. Kf2 {[%clk 0:01:16.1]} 18... Nxf4 {[%clk 0:00:54.5]} 19. exf4 {[%clk
0:01:17]} 19... a5 {[%clk 0:00:49.5]} 20. Qxa5 {[%clk 0:01:07.4]} 20... O-O
{[%clk 0:00:48.7]} 21. Qb4 {[%clk 0:00:53.9]} 21... Rc4 {[%clk 0:00:41.6]} 22.
Bxc4 {[%clk 0:00:43.6]} 22... Qxd4+ {[%clk 0:00:41.8]} 23. Kg3 {[%clk
0:00:43.5]} 23... bxc4 {[%clk 0:00:42]} 24. Nxc4 {[%clk 0:00:43.5]} 24... Be6
{[%clk 0:00:33.1]} 25. b3 {[%clk 0:00:43.2]} 25... h5 {[%clk 0:00:25.6]} 26. h4
{[%clk 0:00:42.5]} 26... f6 {[%clk 0:00:24.5]} 27. Qd6 {[%clk 0:00:39.7]} 27...
Qxd6 {[%clk 0:00:18.8]} 28. exd6 {[%clk 0:00:38.4]} 28... Rd8 {[%clk 0:00:16.9]}
29. Rd1 {[%clk 0:00:36.8]} 29... Kf7 {[%clk 0:00:16.1]} 30. Kf2 {[%clk
0:00:36.8]} 30... Rd7 {[%clk 0:00:14.3]} 31. Ke3 {[%clk 0:00:36.5]} 31... g6
{[%clk 0:00:12.7]} 32. Rd3 {[%clk 0:00:34.5]} 1-0

[Event "*** Titled Tuesday Blitz"]
[Site "Chess.com"]
[Date "2021.03.09"]
[Round "6"]
[White "redblizzard"]
[Black "VladimirPotkin"]
[Result "0-1"]
[WhiteElo "2467"]
[BlackElo "2616"]
[TimeControl "180+1"]
[EndTime "11:10:03 PST"]
[Termination "VladimirPotkin won on time"]

1. e4 {[%clk 0:03:00.9]} 1... c5 {[%clk 0:02:56.2]} 2. Nf3 {[%clk 0:03:01.1]}
2... e6 {[%clk 0:02:56.2]} 3. g3 {[%clk 0:02:59.6]} 3... Nc6 {[%clk 0:02:53.2]}
4. Bg2 {[%clk 0:02:58.8]} 4... Nf6 {[%clk 0:02:53.9]} 5. Qe2 {[%clk 0:02:42.5]}
5... d5 {[%clk 0:02:53.3]} 6. exd5 {[%clk 0:02:42.6]} 6... Nxd5 {[%clk
0:02:54.2]} 7. O-O {[%clk 0:02:42.6]} 7... Be7 {[%clk 0:02:54.9]} 8. Rd1 {[%clk
0:02:42.6]} 8... Qb6 {[%clk 0:02:55.1]} 9. Na3 {[%clk 0:02:32.7]} 9... O-O
{[%clk 0:02:54.8]} 10. Nc4 {[%clk 0:02:16.9]} 10... Qc7 {[%clk 0:02:54.2]} 11.
c3 {[%clk 0:02:12.5]} 11... Rd8 {[%clk 0:02:50.6]} 12. d4 {[%clk 0:02:05.9]}
12... cxd4 {[%clk 0:02:50.8]} 13. cxd4 {[%clk 0:02:06.3]} 13... b6 {[%clk
0:02:46.3]} 14. Nce5 {[%clk 0:02:02.6]} 14... Bb7 {[%clk 0:02:42.8]} 15. Bd2
{[%clk 0:01:49.4]} 15... Nxe5 {[%clk 0:02:39.5]} 16. Nxe5 {[%clk 0:01:43.8]}
16... Rac8 {[%clk 0:02:38.3]} 17. Be4 {[%clk 0:01:19.6]} 17... Bf6 {[%clk
0:02:31.4]} 18. Ng4 {[%clk 0:01:11.8]} 18... Bxd4 {[%clk 0:02:18]} 19. Bg5
{[%clk 0:01:06.4]} 19... Nf6 {[%clk 0:02:06.5]} 20. Bxb7 {[%clk 0:00:45.5]}
20... Qxb7 {[%clk 0:01:59.1]} 21. Rxd4 {[%clk 0:00:42.8]} 21... Rxd4 {[%clk
0:01:54.7]} 22. Bxf6 {[%clk 0:00:32]} 22... Qe4 {[%clk 0:01:05.7]} 23. Qa6
{[%clk 0:00:23.7]} 23... Rdc4 {[%clk 0:01:03.5]} 24. Rd1 {[%clk 0:00:13.2]}
24... Qxg4 {[%clk 0:00:52.8]} 25. Rd4 {[%clk 0:00:13.4]} 25... Qe2 {[%clk
0:00:36.8]} 26. Rg4 {[%clk 0:00:04.5]} 26... Qxg4 {[%clk 0:00:35.6]} 0-1

[Event "*** Titled Tuesday Blitz"]
[Site "Chess.com"]
[Date "2021.03.09"]
[Round "6"]
[White "dolynachess"]
[Black "Airquake"]
[Result "0-1"]
[WhiteElo "2433"]
[BlackElo "2606"]
[TimeControl "180+1"]
[EndTime "11:10:03 PST"]
[Termination "Airquake won by resignation"]

1. d4 {[%clk 0:03:00.9]} 1... Nf6 {[%clk 0:02:36.1]} 2. c4 {[%clk 0:03:00.1]}
2... e6 {[%clk 0:02:36.1]} 3. g3 {[%clk 0:03:00.7]} 3... d5 {[%clk 0:02:34.3]}
4. Bg2 {[%clk 0:03:00.4]} 4... Be7 {[%clk 0:02:34.6]} 5. Nf3 {[%clk 0:03:00.8]}
5... O-O {[%clk 0:02:35.2]} 6. O-O {[%clk 0:03:01.5]} 6... b6 {[%clk 0:02:35.8]}
7. Nc3 {[%clk 0:03:00]} 7... Bb7 {[%clk 0:02:36]} 8. Qa4 {[%clk 0:03:00.4]} 8...
dxc4 {[%clk 0:02:34]} 9. Qxc4 {[%clk 0:02:59.5]} 9... Nc6 {[%clk 0:02:31.6]} 10.
Rd1 {[%clk 0:02:57.9]} 10... Nd5 {[%clk 0:02:26.3]} 11. e4 {[%clk 0:02:50]}
11... Ndb4 {[%clk 0:02:16.4]} 12. a3 {[%clk 0:02:26.2]} 12... Ba6 {[%clk
0:02:15.1]} 13. Nb5 {[%clk 0:02:26.3]} 13... Na5 {[%clk 0:02:12.5]} 14. Qe2
{[%clk 0:01:41.5]} 14... Nb3 {[%clk 0:01:52.1]} 15. Rb1 {[%clk 0:01:40.7]} 15...
Nxc1 {[%clk 0:01:28.6]} 16. Rdxc1 {[%clk 0:01:32.5]} 16... c6 {[%clk 0:00:56.3]}
17. axb4 {[%clk 0:01:29.1]} 17... Bxb5 {[%clk 0:00:56.9]} 18. Qd2 {[%clk
0:01:26.4]} 18... Qd6 {[%clk 0:00:57.5]} 19. Ne5 {[%clk 0:00:56.2]} 19... Rad8
{[%clk 0:00:38.2]} 20. Nxc6 {[%clk 0:00:19.7]} 20... Bxc6 {[%clk 0:00:35.4]} 21.
e5 {[%clk 0:00:20]} 21... Qxe5 {[%clk 0:00:35.9]} 22. dxe5 {[%clk 0:00:18.7]}
22... Rxd2 {[%clk 0:00:35.7]} 23. Rxc6 {[%clk 0:00:14.6]} 23... Bxb4 {[%clk
0:00:36.6]} 24. b3 {[%clk 0:00:10]} 24... Bc5 {[%clk 0:00:35.3]} 25. Rf1 {[%clk
0:00:10.9]} 25... Re2 {[%clk 0:00:31.8]} 0-1

[Event "*** Titled Tuesday Blitz"]
[Site "Chess.com"]
[Date "2021.03.09"]
[Round "6"]
[White "Dave_ChessMate"]
[Black "lacafi"]
[Result "1-0"]
[WhiteElo "2405"]
[BlackElo "2152"]
[TimeControl "180+1"]
[EndTime "11:10:04 PST"]
[Termination "Dave_ChessMate won by resignation"]

1. e4 {[%clk 0:03:00.9]} 1... c6 {[%clk 0:02:59.2]} 2. d4 {[%clk 0:02:58.5]}
2... d5 {[%clk 0:02:59]} 3. exd5 {[%clk 0:02:59.4]} 3... cxd5 {[%clk 0:02:57.5]}
4. Bd3 {[%clk 0:03:00.3]} 4... Nf6 {[%clk 0:02:57.8]} 5. c3 {[%clk 0:03:00]}
5... Nc6 {[%clk 0:02:58.4]} 6. Nf3 {[%clk 0:03:00.4]} 6... g6 {[%clk 0:02:58.5]}
7. O-O {[%clk 0:03:00.4]} 7... Bg7 {[%clk 0:02:59.1]} 8. Qe2 {[%clk 0:03:00.9]}
8... O-O {[%clk 0:02:59.6]} 9. Ne5 {[%clk 0:03:01.2]} 9... a6 {[%clk 0:02:55.8]}
10. Bf4 {[%clk 0:03:00]} 10... e6 {[%clk 0:02:50]} 11. Nd2 {[%clk 0:03:00]}
11... Nh5 {[%clk 0:02:43.5]} 12. Nxc6 {[%clk 0:02:42.4]} 12... Nxf4 {[%clk
0:02:31.2]} 13. Qf3 {[%clk 0:02:41.7]} 13... bxc6 {[%clk 0:01:27.7]} 14. Qxf4
{[%clk 0:02:40.6]} 14... Qb6 {[%clk 0:01:28.3]} 15. Rab1 {[%clk 0:02:34.6]}
15... c5 {[%clk 0:01:28.3]} 16. dxc5 {[%clk 0:02:33.5]} 16... Qxc5 {[%clk
0:01:28.4]} 17. Nb3 {[%clk 0:02:32]} 17... Qb6 {[%clk 0:01:23.4]} 18. h4 {[%clk
0:02:28.7]} 18... Bd7 {[%clk 0:01:21.3]} 19. h5 {[%clk 0:02:29]} 19... Bb5
{[%clk 0:01:21.2]} 20. Qg3 {[%clk 0:02:22.9]} 20... a5 {[%clk 0:01:06.2]} 21.
hxg6 {[%clk 0:02:18.5]} 21... hxg6 {[%clk 0:01:06]} 22. Nd2 {[%clk 0:02:03.8]}
22... Bxd3 {[%clk 0:00:49.7]} 23. Qxd3 {[%clk 0:02:02.2]} 23... Rab8 {[%clk
0:00:49.2]} 24. Rfe1 {[%clk 0:02:01.2]} 24... Rfc8 {[%clk 0:00:43]} 25. Nf3
{[%clk 0:01:59.7]} 25... Rc4 {[%clk 0:00:41.3]} 26. Ng5 {[%clk 0:01:59.4]} 26...
Rf4 {[%clk 0:00:36.9]} 27. Re2 {[%clk 0:01:48.9]} 27... Rf5 {[%clk 0:00:28.4]}
28. Qg3 {[%clk 0:01:31.5]} 28... Bf6 {[%clk 0:00:22.5]} 29. Nf3 {[%clk 0:00:59]}
29... Kg7 {[%clk 0:00:22.4]} 30. Nh4 {[%clk 0:00:56]} 30... Rg5 {[%clk
0:00:21.1]} 31. Qe3 {[%clk 0:00:47.7]} 31... Rh8 {[%clk 0:00:19.4]} 32. Qxb6
{[%clk 0:00:46.2]} 32... Rxh4 {[%clk 0:00:16.5]} 33. g3 {[%clk 0:00:44.3]} 33...
Rh3 {[%clk 0:00:11.5]} 34. Kg2 {[%clk 0:00:42.6]} 1-0

[Event "*** Titled Tuesday Blitz"]
[Site "Chess.com"]
[Date "2021.03.09"]
[Round "6"]
[White "ApoIogiA"]
[Black "KetiGrant"]
[Result "0-1"]
[WhiteElo "2189"]
[BlackElo "2341"]
[TimeControl "180+1"]
[EndTime "11:10:04 PST"]
[Termination "KetiGrant won by resignation"]

1. d4 {[%clk 0:03:00.9]} 1... Nf6 {[%clk 0:02:59.4]} 2. c4 {[%clk 0:03:00.3]}
2... g6 {[%clk 0:03:00.3]} 3. f3 {[%clk 0:02:59.9]} 3... Bg7 {[%clk 0:03:01.2]}
4. e4 {[%clk 0:02:59.7]} 4... d6 {[%clk 0:03:01.8]} 5. Nc3 {[%clk 0:03:00.6]}
5... O-O {[%clk 0:03:01]} 6. Nge2 {[%clk 0:03:00.2]} 6... c5 {[%clk 0:03:00.7]}
7. d5 {[%clk 0:03:00.1]} 7... e6 {[%clk 0:02:59.5]} 8. Ng3 {[%clk 0:02:59]} 8...
exd5 {[%clk 0:02:58.6]} 9. cxd5 {[%clk 0:02:59.9]} 9... a6 {[%clk 0:02:57]} 10.
a4 {[%clk 0:02:59.9]} 10... h5 {[%clk 0:02:54.4]} 11. Be2 {[%clk 0:02:51.5]}
11... Nbd7 {[%clk 0:02:48.5]} 12. O-O {[%clk 0:02:50.8]} 12... h4 {[%clk
0:02:47.5]} 13. Nh1 {[%clk 0:02:50.2]} 13... h3 {[%clk 0:02:43.9]} 14. g3 {[%clk
0:02:49.2]} 14... Nh7 {[%clk 0:02:15.5]} 15. g4 {[%clk 0:02:42.6]} 15... f5
{[%clk 0:01:51]} 16. gxf5 {[%clk 0:02:41]} 16... gxf5 {[%clk 0:01:51]} 17. exf5
{[%clk 0:02:41.9]} 17... Bd4+ {[%clk 0:01:40.8]} 18. Rf2 {[%clk 0:02:40.4]}
18... Ne5 {[%clk 0:01:25.2]} 19. Ng3 {[%clk 0:02:32.8]} 19... Bxf5 {[%clk
0:01:14.7]} 20. Qf1 {[%clk 0:02:04]} 20... Qh4 {[%clk 0:00:55.6]} 21. Kh1 {[%clk
0:02:00.1]} 21... Bg6 {[%clk 0:00:44.1]} 22. f4 {[%clk 0:01:38]} 22... Bxf2
{[%clk 0:00:36.1]} 23. Qxf2 {[%clk 0:01:36.8]} 23... Ng4 {[%clk 0:00:34.1]} 24.
Qf3 {[%clk 0:01:37]} 24... Nhf6 {[%clk 0:00:28.6]} 25. f5 {[%clk 0:01:29.7]}
25... Bf7 {[%clk 0:00:28.3]} 26. Bf4 {[%clk 0:01:24.8]} 26... Rad8 {[%clk
0:00:21]} 27. Rg1 {[%clk 0:01:23.7]} 27... Kh8 {[%clk 0:00:16.8]} 28. Nge4
{[%clk 0:00:54.8]} 28... Rg8 {[%clk 0:00:13.5]} 29. Nxd6 {[%clk 0:00:45.8]}
29... Rxd6 {[%clk 0:00:10]} 30. Bxd6 {[%clk 0:00:45.1]} 30... Nf2+ {[%clk
0:00:08.6]} 0-1

[Event "*** Titled Tuesday Blitz"]
[Site "Chess.com"]
[Date "2021.03.09"]
[Round "6"]
[White "konradrutkowski"]
[Black "BegmuratovKh2010"]
[Result "1-0"]
[WhiteElo "2402"]
[BlackElo "2536"]
[TimeControl "180+1"]
[EndTime "11:10:07 PST"]
[Termination "konradrutkowski won by resignation"]

1. d4 {[%clk 0:03:00.9]} 1... Nf6 {[%clk 0:02:59.1]} 2. Nf3 {[%clk 0:03:00.4]}
2... g6 {[%clk 0:02:59.6]} 3. g3 {[%clk 0:03:00.6]} 3... Bg7 {[%clk 0:03:00.2]}
4. Bg2 {[%clk 0:03:01.5]} 4... O-O {[%clk 0:03:01]} 5. O-O {[%clk 0:03:02.2]}
5... d6 {[%clk 0:03:01.8]} 6. Nc3 {[%clk 0:03:01.9]} 6... Nc6 {[%clk 0:03:02]}
7. d5 {[%clk 0:02:51.6]} 7... Nb8 {[%clk 0:03:01.3]} 8. h3 {[%clk 0:02:48.7]}
8... c6 {[%clk 0:03:00.1]} 9. e4 {[%clk 0:02:49]} 9... cxd5 {[%clk 0:02:59.7]}
10. exd5 {[%clk 0:02:49.9]} 10... Na6 {[%clk 0:02:58.2]} 11. Re1 {[%clk
0:02:49.7]} 11... Nc7 {[%clk 0:02:58.5]} 12. Nd4 {[%clk 0:02:48.5]} 12... Nd7
{[%clk 0:02:56.3]} 13. Be3 {[%clk 0:02:40.4]} 13... Ne5 {[%clk 0:02:52.5]} 14.
Qe2 {[%clk 0:02:38.6]} 14... Re8 {[%clk 0:02:43]} 15. Rad1 {[%clk 0:02:38.1]}
15... Nd7 {[%clk 0:02:38.7]} 16. Bf4 {[%clk 0:02:22.8]} 16... Nf6 {[%clk
0:02:34.7]} 17. Qd2 {[%clk 0:02:13.8]} 17... Bd7 {[%clk 0:02:27.9]} 18. Re2
{[%clk 0:02:08.1]} 18... b5 {[%clk 0:02:24.9]} 19. a3 {[%clk 0:02:06.3]} 19...
a5 {[%clk 0:02:23.9]} 20. Nc6 {[%clk 0:01:50.1]} 20... Bxc6 {[%clk 0:02:23.2]}
21. dxc6 {[%clk 0:01:51]} 21... e6 {[%clk 0:02:11.1]} 22. Qxd6 {[%clk 0:01:41]}
22... Qc8 {[%clk 0:02:05.5]} 23. Qxc7 {[%clk 0:01:39.2]} 23... Qa6 {[%clk
0:02:01.5]} 24. Red2 {[%clk 0:01:31.3]} 24... b4 {[%clk 0:01:59.6]} 25. axb4
{[%clk 0:01:29.7]} 25... axb4 {[%clk 0:02:00.5]} 26. Bf1 {[%clk 0:01:25.5]}
26... Qa5 {[%clk 0:01:52.7]} 27. Qxa5 {[%clk 0:01:24.3]} 27... Rxa5 {[%clk
0:01:53.6]} 28. Nb5 {[%clk 0:01:22.3]} 28... Nd5 {[%clk 0:01:52.4]} 29. Rxd5
{[%clk 0:01:17.3]} 29... exd5 {[%clk 0:01:53.3]} 30. c7 {[%clk 0:01:16.1]} 30...
Bf8 {[%clk 0:01:49.4]} 31. h4 {[%clk 0:00:49.9]} 31... b3 {[%clk 0:01:42]} 32.
cxb3 {[%clk 0:00:48.5]} 32... Raa8 {[%clk 0:01:20]} 33. Bh3 {[%clk 0:00:45.1]}
33... Bc5 {[%clk 0:01:13.1]} 34. Rxd5 {[%clk 0:00:43.2]} 34... Bb6 {[%clk
0:01:12.3]} 35. Rd6 {[%clk 0:00:37.4]} 35... Bc5 {[%clk 0:01:09.5]} 36. Rc6
{[%clk 0:00:36.4]} 36... Re1+ {[%clk 0:01:02.6]} 37. Kg2 {[%clk 0:00:36]} 37...
Bb4 {[%clk 0:01:02.5]} 38. c8=Q+ {[%clk 0:00:35.5]} 38... Rxc8 {[%clk
0:01:02.6]} 39. Rxc8+ {[%clk 0:00:36.2]} 39... Kg7 {[%clk 0:01:03.2]} 40. Nd4
{[%clk 0:00:33.3]} 40... Rb1 {[%clk 0:01:00.1]} 41. Be5+ {[%clk 0:00:31.9]}
41... f6 {[%clk 0:00:59.9]} 42. Rc7+ {[%clk 0:00:31.2]} 42... Kf8 {[%clk
0:00:54.2]} 43. Bxf6 {[%clk 0:00:29.5]} 43... Rxb2 {[%clk 0:00:54]} 44. Ne6+
{[%clk 0:00:29.6]} 44... Ke8 {[%clk 0:00:53.5]} 45. Bxb2 {[%clk 0:00:30.1]} 1-0

[Event "*** Titled Tuesday Blitz"]
[Site "Chess.com"]
[Date "2021.03.09"]
[Round "6"]
[White "ecwinslow"]
[Black "Klavdia_Nik"]
[Result "1-0"]
[WhiteElo "2210"]
[BlackElo "2043"]
[TimeControl "180+1"]
[EndTime "11:10:08 PST"]
[Termination "ecwinslow won on time"]

1. e4 {[%clk 0:03:00.9]} 1... g6 {[%clk 0:02:32]} 2. d4 {[%clk 0:02:58.8]} 2...
Bg7 {[%clk 0:02:30.2]} 3. Nc3 {[%clk 0:02:56.7]} 3... d6 {[%clk 0:02:29.2]} 4.
f4 {[%clk 0:02:55.7]} 4... Nd7 {[%clk 0:02:19]} 5. Nf3 {[%clk 0:02:48.1]} 5...
e6 {[%clk 0:02:08.5]} 6. Bd3 {[%clk 0:02:37.6]} 6... Ne7 {[%clk 0:02:09.4]} 7.
O-O {[%clk 0:02:30]} 7... Ng8 {[%clk 0:02:10.3]} 8. f5 {[%clk 0:02:21.4]} 8...
Ne7 {[%clk 0:02:11.2]} 9. fxe6 {[%clk 0:01:51.1]} 9... O-O {[%clk 0:02:12.1]}
10. exd7 {[%clk 0:01:50.1]} 10... Bxd7 {[%clk 0:01:06.3]} 11. Bg5 {[%clk
0:01:34.5]} 11... h6 {[%clk 0:01:05.1]} 12. Bh4 {[%clk 0:01:33]} 12... c6 {[%clk
0:01:03.5]} 13. Kh1 {[%clk 0:01:22.2]} 13... b5 {[%clk 0:00:25.4]} 14. e5 {[%clk
0:01:17.5]} 14... d5 {[%clk 0:00:23]} 15. Qd2 {[%clk 0:01:09.3]} 15... a5 {[%clk
0:00:15.2]} 16. Ne2 {[%clk 0:00:59.7]} 16... Kh7 {[%clk 0:00:06]} 17. Bf6 {[%clk
0:00:41.8]} 17... Qe8 {[%clk 0:00:05.6]} 18. Ng3 {[%clk 0:00:36.4]} 18... Ng8
{[%clk 0:00:04.6]} 19. Bxg7 {[%clk 0:00:35.2]} 19... Kxg7 {[%clk 0:00:05.2]} 20.
Rf2 {[%clk 0:00:32.5]} 20... Bg4 {[%clk 0:00:02.6]} 21. Raf1 {[%clk 0:00:31.3]}
21... Ne7 {[%clk 0:00:01.7]} 22. h3 {[%clk 0:00:29.3]} 22... Be6 {[%clk
0:00:01.7]} 23. Nh4 {[%clk 0:00:26.8]} 23... Qd7 {[%clk 0:00:01.8]} 24. Kh2
{[%clk 0:00:25.2]} 1-0

[Event "*** Titled Tuesday Blitz"]
[Site "Chess.com"]
[Date "2021.03.09"]
[Round "6"]
[White "Agoking701"]
[Black "KonstantinB_1983"]
[Result "0-1"]
[WhiteElo "2350"]
[BlackElo "2500"]
[TimeControl "180+1"]
[EndTime "11:10:09 PST"]
[Termination "KonstantinB_1983 won by resignation"]

1. e4 {[%clk 0:03:00.9]} 1... d5 {[%clk 0:02:55.6]} 2. exd5 {[%clk 0:02:59.2]}
2... Qxd5 {[%clk 0:02:54.1]} 3. Nc3 {[%clk 0:02:58.4]} 3... Qd6 {[%clk
0:02:54.5]} 4. Bc4 {[%clk 0:02:56.4]} 4... Nf6 {[%clk 0:02:54.2]} 5. d4 {[%clk
0:02:53.9]} 5... a6 {[%clk 0:02:54.1]} 6. Nf3 {[%clk 0:02:48.9]} 6... b5 {[%clk
0:02:53.5]} 7. Bb3 {[%clk 0:02:44.7]} 7... Bb7 {[%clk 0:02:53.5]} 8. Qe2 {[%clk
0:02:33]} 8... e6 {[%clk 0:02:49.8]} 9. Bg5 {[%clk 0:02:31.4]} 9... c5 {[%clk
0:02:43.6]} 10. dxc5 {[%clk 0:02:27.6]} 10... Qxc5 {[%clk 0:02:42.3]} 11. O-O
{[%clk 0:02:17.6]} 11... Nbd7 {[%clk 0:02:30.5]} 12. Rad1 {[%clk 0:01:59.6]}
12... Be7 {[%clk 0:02:26.7]} 13. Rfe1 {[%clk 0:01:49.8]} 13... O-O-O {[%clk
0:02:10.3]} 14. Be3 {[%clk 0:01:38.4]} 14... Qc6 {[%clk 0:02:07]} 15. Bd4 {[%clk
0:00:51.7]} 15... g5 {[%clk 0:01:47.5]} 16. a4 {[%clk 0:00:41.4]} 16... b4
{[%clk 0:01:45.2]} 17. Nb5 {[%clk 0:00:41.8]} 17... axb5 {[%clk 0:01:33.1]} 18.
axb5 {[%clk 0:00:42.7]} 18... Qc7 {[%clk 0:01:30.3]} 19. Ne5 {[%clk 0:00:27.8]}
19... Nxe5 {[%clk 0:01:17.9]} 20. Bxe5 {[%clk 0:00:28.7]} 20... Qc5 {[%clk
0:01:17.7]} 21. h3 {[%clk 0:00:19.8]} 21... Rxd1 {[%clk 0:01:11.5]} 22. Rxd1
{[%clk 0:00:20.7]} 22... Rd8 {[%clk 0:01:10.1]} 23. Ra1 {[%clk 0:00:17.8]} 23...
Ne4 {[%clk 0:00:58.9]} 24. Bh2 {[%clk 0:00:09.7]} 24... Rd2 {[%clk 0:00:56.1]}
25. Qe1 {[%clk 0:00:03.1]} 25... Qxf2+ {[%clk 0:00:36]} 26. Qxf2 {[%clk
0:00:02.5]} 26... Rxf2 {[%clk 0:00:33.9]} 27. Re1 {[%clk 0:00:02.5]} 27... Rd2
{[%clk 0:00:32.3]} 0-1

[Event "*** Titled Tuesday Blitz"]
[Site "Chess.com"]
[Date "2021.03.09"]
[Round "6"]
[White "Diamantidis_13"]
[Black "GMJustin"]
[Result "1/2-1/2"]
[WhiteElo "2366"]
[BlackElo "2264"]
[TimeControl "180+1"]
[EndTime "11:10:10 PST"]
[Termination "Game drawn by repetition"]

1. d4 {[%clk 0:02:47.6]} 1... Nf6 {[%clk 0:02:55.8]} 2. c4 {[%clk 0:02:47.6]}
2... e6 {[%clk 0:02:43.4]} 3. g3 {[%clk 0:02:46.3]} 3... d5 {[%clk 0:02:41.5]}
4. Bg2 {[%clk 0:02:45.9]} 4... dxc4 {[%clk 0:02:40.2]} 5. Nf3 {[%clk 0:02:46]}
5... Nc6 {[%clk 0:02:30.5]} 6. O-O {[%clk 0:02:45.7]} 6... Rb8 {[%clk
0:02:27.8]} 7. e3 {[%clk 0:02:43.4]} 7... b5 {[%clk 0:02:26.3]} 8. b3 {[%clk
0:02:39.9]} 8... cxb3 {[%clk 0:02:23.1]} 9. axb3 {[%clk 0:02:40.8]} 9... Bd6
{[%clk 0:02:12.2]} 10. Bd2 {[%clk 0:02:38.4]} 10... O-O {[%clk 0:02:08.9]} 11.
Ng5 {[%clk 0:02:29.5]} 11... Bb7 {[%clk 0:01:58.7]} 12. Qc2 {[%clk 0:02:29]}
12... Nb4 {[%clk 0:01:19.4]} 13. Bxb4 {[%clk 0:02:26.3]} 13... Bxb4 {[%clk
0:01:19.3]} 14. Rxa7 {[%clk 0:01:51.1]} 14... Bxg2 {[%clk 0:01:17.4]} 15. Kxg2
{[%clk 0:01:52]} 15... Qd5+ {[%clk 0:01:15.5]} 16. Nf3 {[%clk 0:01:52.6]} 16...
c5 {[%clk 0:01:12.3]} 17. dxc5 {[%clk 0:01:51.9]} 17... Bxc5 {[%clk 0:01:10.6]}
18. Rd1 {[%clk 0:01:50.6]} 18... Bxa7 {[%clk 0:00:57.2]} 19. Rxd5 {[%clk
0:01:49.3]} 19... Nxd5 {[%clk 0:00:57.2]} 20. Nc3 {[%clk 0:01:33.3]} 20... Rbc8
{[%clk 0:00:45.6]} 21. Qa2 {[%clk 0:01:31.5]} 21... Rxc3 {[%clk 0:00:41.9]} 22.
Qxa7 {[%clk 0:01:31.6]} 22... Rxb3 {[%clk 0:00:41.3]} 23. Nd4 {[%clk 0:01:31.9]}
23... Rb2 {[%clk 0:00:40.2]} 24. e4 {[%clk 0:01:28]} 24... Ne3+ {[%clk
0:00:33.3]} 25. Kf3 {[%clk 0:01:27.2]} 25... Nd1 {[%clk 0:00:32.3]} 26. Ne2
{[%clk 0:01:19.3]} 26... b4 {[%clk 0:00:26]} 27. Qd7 {[%clk 0:01:19.2]} 27...
Nc3 {[%clk 0:00:22]} 28. Nf4 {[%clk 0:01:19.4]} 28... b3 {[%clk 0:00:10.7]} 29.
Qd4 {[%clk 0:01:19.3]} 29... Rc2 {[%clk 0:00:08.9]} 30. Nh5 {[%clk 0:01:19.2]}
30... f6 {[%clk 0:00:08.9]} 31. Qd7 {[%clk 0:01:18.1]} 31... Rf7 {[%clk
0:00:07.1]} 32. Qe8+ {[%clk 0:01:17.7]} 32... Rf8 {[%clk 0:00:07.4]} 33. Qxe6+
{[%clk 0:01:17.6]} 33... Kh8 {[%clk 0:00:07.1]} 34. Qe7 {[%clk 0:01:17.2]} 34...
Rg8 {[%clk 0:00:06.5]} 35. Nxf6 {[%clk 0:01:17.5]} 35... b2 {[%clk 0:00:05.6]}
36. Qf7 {[%clk 0:00:59.3]} 36... gxf6 {[%clk 0:00:05.6]} 37. Qxf6+ {[%clk
0:00:58.5]} 37... Rg7 {[%clk 0:00:06.2]} 38. Qd8+ {[%clk 0:00:55.7]} 38... Rg8
{[%clk 0:00:06.3]} 39. Qd4+ {[%clk 0:00:55.8]} 39... Rg7 {[%clk 0:00:06.1]} 40.
Qd8+ {[%clk 0:00:55.6]} 40... Rg8 {[%clk 0:00:06.4]} 41. Qd4+ {[%clk 0:00:54]}
41... Rg7 {[%clk 0:00:06.7]} 42. Qd8+ {[%clk 0:00:54.7]} 1/2-1/2